bitfinex-derivatives/quotes_SOLF0:USTF0_20250409
["timestamp","ask_amount","ask_price","bid_price","bid_amount"]
[1744221083040,39.18408467,117.92,117.81,39.18408467]
[1744221083239,4.4284,117.91,117.79,43.49138467]
[1744221083548,43.61248467,117.91,117.86,0.05411874]
[1744221083949,39.18408467,117.89,117.86,0.05411874]
[1744221084447,594.27298467,117.9,117.77,39.18408467]
[1744221084645,594.27298467,117.9,117.75,4.3117]
[1744221084646,39.18408467,117.86,117.75,4.3117]
[1744221084846,39.18408467,117.84,117.75,4.3117]
[1744221085149,39.18408467,117.82,117.69,39.18408467]
[1744221085350,39.18408467,117.8,117.7,62.0]
[1744221085539,0.05411874,117.77,117.74,0.05460473]
[1744221085735,39.18408467,117.76,117.67,8.5036]
[1744221086047,39.18408467,117.76,117.7,10.20063534]
[1744221086347,39.18408467,117.76,117.7,1.69923534]
[1744221086539,39.18408467,117.74,117.63,47.68768467]
[1744221086740,39.18408467,117.76,117.64,1.700102]
[1744221086942,39.24775703,117.7,117.67,0.06070135]
[1744221087446,4.5325,117.71,117.64,1.700102]
[1744221087648,39.24403847,117.7,117.67,0.05914749]
[1744221087850,0.0599538,117.7,117.67,0.05914749]
[1744221088449,39.18408467,117.68,117.54,39.18408467]
[1744221088653,39.18408467,117.63,117.55,86.19066526]
[1744221088948,39.18408467,117.63,117.55,77.67846526]
[1744221089141,589.70408467,117.65,117.6,8.5089]
[1744221089346,550.52,117.65,117.56,39.18408467]
[1744221089741,0.05720412,117.62,117.61,8.5084]
[1744221090143,4.2978,117.7,117.61,8.5]
[1744221090444,4.2978,117.7,117.6,39.18408467]
[1744221090750,4.5325,117.71,117.62,39.18408467]
[1744221091054,39.18408467,117.76,117.65,39.18408467]
[1744221091252,4.3466,117.77,117.65,39.18408467]
[1744221091443,39.18408467,117.78,117.69,0.05369939]
[1744221091752,43.63338467,117.8,117.69,39.23778406]
[1744221091940,4.4493,117.8,117.71,39.18408467]
[1744221092142,39.18408467,117.86,117.75,39.18408467]
[1744221092343,39.18408467,117.88,117.81,8.4935]
[1744221092552,1.69678459,117.87,117.75,39.18408467]
[1744221092749,39.18408467,117.86,117.73,39.18408467]
[1744221092954,39.18408467,117.84,117.72,39.18408467]
[1744221093153,1.6973606,117.83,117.72,39.18408467]
[1744221093651,39.18408467,117.82,117.7,39.18408467]
[1744221093857,39.18408467,117.8,117.69,4.4405]
[1744221094046,6.14694875,117.81,117.76,8.4969]
[1744221094247,0.06385491,117.77,117.75,0.06452231]
[1744221094451,1.69779286,117.8,117.75,0.06452231]
[1744221094853,0.05784929,117.77,117.75,0.06452231]
[1744221095654,39.18408467,117.76,117.7,8.5014]
[1744221095859,39.18408467,117.76,117.64,39.18408467]
[1744221096051,39.18408467,117.78,117.7,8.5013]
[1744221096350,39.18408467,117.78,117.66,39.18408467]
[1744221096550,594.13368467,117.8,117.68,39.18408467]
[1744221096750,550.6,117.8,117.72,39.18408467]
[1744221096943,4.3496,117.88,117.78,39.18408467]
[1744221097148,4.1811,117.89,117.82,39.18408467]
[1744221097352,4.2325,117.95,117.86,39.18408467]
[1744221097556,39.18408467,117.98,117.86,39.18408467]
[1744221097749,39.18408467,117.98,117.92,8.4854]
[1744221097948,39.18408467,118.0,117.88,39.18408467]
[1744221098157,0.05747034,117.93,117.91,0.06119214]
[1744221098456,4.2882,118.01,117.92,101.18408467]
[1744221098655,550.62,118.08,117.98,39.18408467]
[1744221098859,39.18408467,118.06,117.96,39.18408467]
[1744221099056,550.62,118.08,117.96,39.18408467]
[1744221099254,550.62,118.08,117.98,39.18408467]
[1744221099559,4.2882,118.11,118.03,39.18408467]
[1744221099746,4.2882,118.11,118.06,8.4757]
[1744221100267,43.47228467,118.11,118.0,39.18408467]
[1744221100463,0.05842916,118.1,118.0,39.18408467]
[1744221100650,43.47228467,118.11,118.0,39.18408467]
[1744221100849,43.47228467,118.11,117.97,4.5782]
[1744221101054,39.18408467,118.07,117.93,4.3407]
[1744221101359,4.583,118.1,117.93,4.3407]
[1744221101560,39.18408467,118.09,117.98,39.18408467]
[1744221101746,0.05425265,118.01,117.99,0.06325694]
[1744221101946,39.18408467,118.1,117.98,39.18408467]
[1744221102251,39.18408467,118.08,117.96,39.18408467]
[1744221102454,39.18408467,118.08,117.97,62.0]
[1744221102655,39.18408467,118.08,117.97,101.18408467]
[1744221103064,39.18408467,118.09,117.97,101.18408467]
[1744221103362,39.18408467,118.09,118.01,0.05726235]
[1744221103363,0.05777243,118.04,118.01,0.05726235]
[1744221103662,0.05777243,118.04,118.02,8.4789]
[1744221103867,0.05777243,118.04,117.97,101.18408467]
[1744221104058,0.05777243,118.04,118.02,0.05453228]
[1744221104253,0.05777243,118.04,117.97,101.18408467]
[1744221104562,0.05777243,118.04,118.01,39.18408467]
[1744221104763,4.2882,118.11,118.01,39.18408467]
[1744221105367,4.583,118.15,118.03,39.18408467]
[1744221105661,549.98,118.16,118.07,39.18408467]
[1744221105860,549.98,118.16,118.09,39.18408467]
[1744221106058,0.02244292,118.1,118.08,0.05944203]
[1744221106364,549.98,118.16,118.08,39.18408467]
[1744221106769,549.98,118.16,118.12,8.4715]
[1744221106966,549.98,118.16,118.04,8.7869]
[1744221107162,549.98,118.16,118.09,39.18408467]
[1744221107463,549.98,118.16,118.07,39.18408467]
[1744221107761,549.98,118.16,118.12,8.4713]
[1744221107958,549.98,118.16,118.09,0.056572]
[1744221108266,39.18408467,118.13,118.04,8.7869]
[1744221108469,39.18408467,118.15,118.04,47.97098467]
[1744221108765,549.98,118.16,118.11,0.05615628]
[1744221108965,39.18408467,118.15,118.04,47.97098467]
[1744221109158,39.18408467,118.15,118.12,0.05417508]
[1744221109359,39.18408467,118.13,118.02,39.18408467]
[1744221109555,39.18408467,118.11,118.0,4039.18408467]
[1744221109858,39.18408467,118.13,118.02,39.18408467]
[1744221110062,4.3122,118.15,118.0,4039.18408467]
[1744221110263,40.74050398,118.14,118.02,39.18408467]
[1744221110454,8.6193,118.15,118.0,4000.0]
[1744221110767,39.18408467,118.06,118.0,4000.0]
[1744221110971,549.44,118.07,118.0,4039.18408467]
[1744221111554,3.27051043,118.27,118.02,39.18408467]
[1744221111757,39.18408467,118.15,118.03,47.82038467]
[1744221111963,0.05586351,118.16,118.13,0.05592067]
[1744221112264,588.50408467,118.22,118.11,39.18408467]
[1744221112665,0.05394609,118.16,118.13,0.05726571]
[1744221112969,588.50408467,118.22,118.09,39.18408467]
[1744221113157,588.50408467,118.22,118.11,39.18408467]
[1744221113467,0.05931559,118.16,118.13,0.06504545]
[1744221113969,39.18408467,118.18,118.1,62.0]
[1744221114161,0.05485369,118.16,118.13,0.05486854]
[1744221114663,549.32,118.22,118.09,39.18408467]
[1744221114863,549.32,118.22,118.16,39.18408467]
[1744221115064,549.32,118.22,118.21,8.4652]
[1744221115552,4.364,118.25,118.2,0.05745377]
[1744221115757,4.725e-05,118.23,118.2,39.24153844]
[1744221115953,4.725e-05,118.23,118.22,39.18408467]
[1744221116158,549.12,118.3,118.22,39.18408467]
[1744221116367,588.30408467,118.3,118.2,39.18408467]
[1744221116669,39.18408467,118.28,118.18,39.18408467]
[1744221116968,39.18408467,118.28,118.16,39.18408467]
[1744221117161,0.05180653,118.24,118.22,0.05762363]
[1744221117774,0.05180653,118.24,118.23,8.4638]
[1744221118066,0.05180653,118.24,118.22,0.05762363]
[1744221119462,0.05180653,118.24,118.11,8.7637]
[1744221119664,0.05180653,118.24,118.16,39.18408467]
[1744221119868,39.18408467,118.27,118.16,39.18408467]
[1744221120373,39.18408467,118.25,118.14,39.18408467]
[1744221120573,39.18408467,118.21,118.11,39.18408467]
[1744221120774,39.18408467,118.22,118.2,0.05967496]
[1744221120978,548.74,118.21,118.07,105.57968467]
[1744221121264,39.18408467,118.18,118.07,105.57968467]
[1744221121466,553.0312,118.21,118.11,39.18408467]
[1744221121660,592.21528467,118.21,118.09,39.18408467]
[1744221121863,553.0312,118.21,118.09,39.18408467]
[1744221122173,0.06048975,118.16,118.14,0.05802247]
[1744221122364,0.06048975,118.16,118.15,8.4695]
[1744221122670,39.18408467,118.2,118.14,0.05802247]
[1744221122971,39.18408467,118.16,118.02,39.18408467]
[1744221123166,39.18408467,118.11,118.0,4039.18408467]
[1744221123364,548.74,118.13,118.06,39.18408467]
[1744221123558,39.18408467,118.19,118.08,39.18408467]
[1744221123761,39.18408467,118.17,118.06,39.18408467]
[1744221124167,39.18408467,118.15,118.1,0.06044859]
[1744221124371,0.06352558,118.13,118.1,0.06044859]
[1744221124575,39.18408467,118.11,118.0,4039.18408467]
[1744221124776,39.18408467,118.11,118.1,0.05980916]
[1744221125073,548.76,118.18,118.06,39.18408467]
[1744221125262,548.76,118.18,118.09,39.18408467]
[1744221125460,548.76,118.18,118.11,39.18408467]
[1744221125662,548.76,118.18,118.09,39.24364317]
[1744221125864,587.94408467,118.25,118.14,39.18408467]
[1744221126069,39.18408467,118.27,118.16,39.18408467]
[1744221126270,548.76,118.33,118.22,39.18408467]
[1744221126470,548.76,118.33,118.27,8.4607]
[1744221126768,587.94408467,118.33,118.24,39.18408467]
[1744221127072,548.76,118.33,118.24,39.18408467]
[1744221127274,0.05589999,118.31,118.29,0.05410584]
[1744221128169,0.05589999,118.31,118.3,8.4588]
[1744221128574,549.72,118.4,118.3,8.4588]
[1744221128575,1.0,118.4,118.32,39.18408467]
[1744221128871,1.0,118.4,118.39,8.4524]
[1744221129268,1.0,118.4,118.33,39.18408467]
[1744221129672,1.0,118.4,118.35,0.05871379]
[1744221129871,0.05561222,118.38,118.35,0.05871379]
[1744221130464,587.56408467,118.37,118.27,39.18408467]
[1744221130676,39.18408467,118.35,118.25,39.18408467]
[1744221130870,8.8455,118.39,118.33,8.4562]
[1744221131073,39.18408467,118.38,118.23,4.2293]
[1744221131379,39.18408467,118.32,118.2,39.18408467]
[1744221131768,0.05451425,118.27,118.25,0.0647017]
[1744221131972,52.17038467,118.39,118.26,39.18408467]
[1744221132175,4.441,118.39,118.32,39.18408467]
[1744221132375,4.441,118.39,118.3,39.18408467]
[1744221132576,43.62508467,118.39,118.27,43.51058467]
[1744221132974,43.62508467,118.39,118.27,45.20163058]
[1744221133172,0.06073813,118.34,118.32,0.05701332]
[1744221133576,43.62508467,118.39,118.32,0.05701332]
[1744221133775,0.05399278,118.34,118.32,0.05701332]
[1744221133980,0.05399278,118.34,118.33,8.4564]
[1744221134182,43.62508467,118.39,118.32,0.05701332]
[1744221134371,0.06430342,118.35,118.32,0.05701332]
[1744221137382,3.42e-06,118.35,118.32,39.24109799]
[1744221137583,3.42e-06,118.35,118.33,62.0]
[1744221137786,3.42e-06,118.35,118.32,0.05701332]
[1744221137989,39.18408467,118.33,118.15,548.16]
[1744221138194,39.18408467,118.27,118.14,39.18408467]
[1744221138486,39.18408467,118.29,118.18,39.18408467]
[1744221138686,39.18408467,118.25,118.13,39.18408467]
[1744221138884,8.4771,118.3,118.15,39.18408467]
[1744221139087,39.18408467,118.29,118.18,0.06506969]
[1744221139484,0.0595008,118.24,118.19,39.18408467]
[1744221139780,0.0595008,118.24,118.23,8.4638]
[1744221139988,4.2793,118.3,118.23,39.18408467]
[1744221140180,0.05398666,118.23,118.22,0.05938455]
[1744221140380,39.18408467,118.25,118.14,39.18408467]
[1744221140585,39.18408467,118.21,118.1,4.1443]
[1744221140784,4.466,118.2,118.09,82.14696526]
[1744221141080,4.466,118.2,118.1,39.18408467]
[1744221141288,4.466,118.2,118.14,39.18408467]
[1744221141481,548.04,118.35,118.19,39.18408467]
[1744221141687,1.55492576,118.34,118.23,39.18408467]
[1744221141883,0.06229485,118.28,118.26,0.06508975]
[1744221142284,39.18408467,118.31,118.19,39.18408467]
[1744221142683,39.18408467,118.31,118.26,8.4614]
[1744221142984,39.18408467,118.31,118.14,39.18408467]
[1744221143187,39.18408467,118.26,118.23,8.4638]
[1744221143486,39.24640953,118.24,118.11,43.68698467]
[1744221143690,39.18408467,118.2,118.09,39.18408467]
[1744221143891,39.18408467,118.2,118.1,62.0]
[1744221144188,9.1517,118.23,118.1,101.18408467]
[1744221144493,39.18408467,118.2,118.1,101.18408467]
[1744221144790,0.06209046,118.18,118.15,0.05841238]
[1744221145993,548.28,118.24,118.15,0.05841238]
[1744221146192,39.18408467,118.2,118.15,0.05841238]
[1744221146392,39.18408467,118.2,118.1,101.18408467]
[1744221146587,39.18408467,118.22,118.11,1.69333672]
[1744221146893,587.46408467,118.24,118.17,8.4676]
[1744221147086,587.46408467,118.24,118.12,39.18408467]
[1744221147292,0.06376282,118.22,118.19,0.06433896]
[1744221147488,39.18408467,118.22,118.11,1.69333672]
[1744221147786,39.18408467,118.2,118.11,1.69333672]
[1744221147988,548.28,118.24,118.14,39.18408467]
[1744221148185,39.18408467,118.23,118.12,39.18408467]
[1744221148390,548.28,118.24,118.12,39.18408467]
[1744221148593,39.18408467,118.25,118.14,39.18408467]
[1744221148791,4.4791,118.24,118.18,39.18408467]
[1744221149094,4.4791,118.3,118.22,39.18408467]
[1744221149289,4.4791,118.3,118.24,39.18408467]
[1744221149511,4.4791,118.3,118.16,16.9366]
[1744221149793,39.18408467,118.29,118.16,39.18408467]
[1744221149983,39.18408467,118.27,118.2,8.4653]
[1744221150183,0.05657129,118.24,118.22,0.05770258]
[1744221150489,39.18408467,118.23,118.11,1.69333672]
[1744221150688,587.54408467,118.22,118.11,1.69333672]
[1744221150885,4.4791,118.21,118.12,39.18408467]
[1744221151189,552.5532,118.29,118.18,39.18408467]
[1744221151383,4.1932,118.29,118.18,39.18408467]
[1744221151582,4.1932,118.29,118.15,0.06358066]
[1744221151790,39.18408467,118.28,118.19,62.0]
[1744221151983,0.06376392,118.25,118.23,8.4632]
[1744221152191,39.24784859,118.25,118.13,40.87713469]
[1744221152394,39.24784859,118.25,118.15,39.18408467]
[1744221152592,587.54408467,118.27,118.15,39.18408467]
[1744221152996,39.18408467,118.23,118.13,1.69305002]
[1744221153292,39.18408467,118.25,118.13,40.87713469]
[1744221153499,0.06474341,118.19,118.17,0.06147944]
[1744221153695,0.06474341,118.19,118.18,8.4674]
[1744221153996,587.54408467,118.27,118.15,39.18408467]
[1744221154196,0.05406148,118.2,118.17,0.06037758]
[1744221154495,0.05406148,118.2,118.16,1.69262017]
[1744221154696,548.36,118.27,118.17,39.18408467]
[1744221154899,8.5688,118.29,118.19,39.18408467]
[1744221155197,4.1932,118.29,118.28,8.4602]
[1744221155492,39.18408467,118.33,118.23,0.0634849]
[1744221155694,5.86118845,118.33,118.21,39.18408467]
[1744221155895,5.86118845,118.33,118.23,39.18408467]
[1744221156098,39.18408467,118.31,118.24,8.4626]
[1744221156396,45.04527312,118.33,118.22,39.18408467]
[1744221157013,0.05547725,118.29,118.26,0.06049895]
[1744221157399,4.4335,118.3,118.2,39.18408467]
[1744221157789,39.23786454,118.29,118.26,0.06103708]
[1744221157999,39.18408467,118.27,118.14,47.55318467]
[1744221158200,4.4335,118.3,118.19,39.18408467]
[1744221158401,4.4335,118.3,118.21,39.18408467]
[1744221158903,4.4335,118.3,118.21,101.18408467]
[1744221159201,0.05488785,118.27,118.24,0.05826786]
[1744221160103,8.785e-05,118.27,118.26,39.18408467]
[1744221160300,8.785e-05,118.27,118.26,47.64568467]
[1744221160498,1.69018845,118.33,118.26,47.64408467]
[1744221160699,1.69018845,118.33,118.26,39.18408467]
[1744221161699,39.18408467,118.3,118.24,8.4627]
[1744221161997,39.18408467,118.3,118.16,16.9374]
[1744221161998,39.18408467,118.32,118.2,39.18408467]
[1744221162189,39.18408467,118.28,118.22,8.4641]
[1744221162501,39.18408467,118.28,118.17,39.18408467]
[1744221162704,587.40408467,118.3,118.18,39.18408467]
[1744221163192,0.06405666,118.24,118.21,0.05416636]
[1744221163594,591.65778467,118.3,118.16,16.9376]
[1744221163788,0.05666378,118.24,118.21,8.52369007]
[1744221164100,39.18408467,118.22,118.12,8.3665]
[1744221164297,39.18408467,118.22,118.06,75.23749143]
[1744221164497,4.539,118.21,118.1,39.18408467]
[1744221164813,4.539,118.21,118.16,39.18408467]
[1744221165008,4.2756,118.27,118.18,39.18408467]
[1744221165191,4.539,118.29,118.24,39.18408467]
[1744221165500,4.539,118.29,118.21,39.18408467]
[1744221165698,0.0587349,118.28,118.17,39.18408467]
[1744221165896,4.539,118.29,118.25,0.05913118]
[1744221166100,43.72308467,118.29,118.17,43.35978467]
[1744221166297,0.06427143,118.24,118.15,4.4184]
[1744221166496,39.18408467,118.25,118.11,5.86903672]
[1744221166696,39.18408467,118.23,118.11,5.86903672]
[1744221166896,39.18408467,118.21,118.11,1.69333672]
[1744221167402,0.05511786,118.17,118.15,0.05731015]
[1744221168300,0.05511786,118.17,118.11,1.69333672]
[1744221168497,0.05511786,118.17,118.16,8.4688]
[1744221168703,43.73508467,118.25,118.15,39.18408467]
[1744221169106,43.73508467,118.25,118.13,39.18408467]
[1744221169298,43.73508467,118.25,118.14,1.69290672]
[1744221169497,43.73508467,118.25,118.16,8.4684]
[1744221169699,39.18408467,118.23,118.16,8.4684]
[1744221169893,39.18408467,118.21,118.14,1.69290672]
[1744221170203,548.32,118.21,118.11,1.69333672]
[1744221170402,39.18408467,118.18,118.07,39.18408467]
[1744221170704,39.18408467,118.2,118.09,39.18408467]
[1744221171291,0.05806158,118.16,118.13,0.05808779]
[1744221173209,0.05806158,118.16,118.15,8.4695]
[1744221174104,0.05806158,118.16,118.13,0.05808779]
[1744221174303,39.18408467,118.14,118.03,39.18408467]
[1744221174502,39.18408467,118.14,118.02,43.48448467]
[1744221174703,39.18408467,118.12,118.0,4039.18408467]
[1744221174903,39.18408467,118.1,118.0,4039.18408467]
[1744221175108,4.5002,118.13,118.02,39.18408467]
[1744221175611,0.05432591,118.09,118.06,0.06059923]
[1744221176411,0.05432591,118.09,118.06,8.53629923]
[1744221176711,0.05432591,118.09,118.06,0.06059923]
[1744221177012,0.05432591,118.09,118.08,8.4745]
[1744221177613,4.3892,118.18,118.08,39.18408467]
[1744221177815,4.3892,118.18,118.1,39.18408467]
[1744221178111,43.57328467,118.18,118.07,43.42048467]
[1744221178515,43.57328467,118.18,118.11,8.4722]
[1744221178814,0.06092093,118.14,118.11,0.06268258]
[1744221179217,0.06092093,118.14,118.13,8.4702]
[1744221179406,4.324,118.2,118.13,47.65428467]
[1744221179609,39.18408467,118.22,118.11,0.06268258]
[1744221179805,39.18408467,118.24,118.12,39.18408467]
[1744221180006,4.324,118.21,118.12,39.18408467]
[1744221180206,4.324,118.21,118.09,39.18408467]
[1744221180510,4.324,118.21,118.13,39.18408467]
[1744221180709,0.05403137,118.16,118.14,0.0629079]
[1744221181107,43.50808467,118.21,118.14,0.0629079]
[1744221181315,43.50808467,118.21,118.07,4.2364]
[1744221181316,0.06093459,118.16,118.07,43.42048467]
[1744221181603,39.18408467,118.17,118.07,4.2364]
[1744221181809,39.18408467,118.19,118.09,39.18408467]
[1744221182006,39.18408467,118.19,118.07,4.2364]
[1744221182207,39.18408467,118.16,118.05,39.18408467]
[1744221182419,39.18408467,118.19,118.07,39.18408467]
[1744221182619,0.05617095,118.14,118.12,0.06212626]
[1744221182811,0.05617095,118.14,118.07,39.18408467]
[1744221183010,39.18408467,118.17,118.12,0.0625608]
[1744221183310,48.13058467,118.2,118.09,39.18408467]
[1744221183515,0.06361687,118.16,118.13,0.06059728]
[1744221183714,39.18408467,118.38,118.15,39.18408467]
[1744221184010,39.18408467,118.3,118.19,39.18408467]
[1744221184227,39.18408467,118.3,118.09,891.90408467]
[1744221184228,4.2184,118.31,118.15,4.5809]
[1744221184229,39.18408467,118.26,118.15,4.5809]
[1744221184413,39.18408467,118.23,118.15,4.5809]
[1744221184818,39.18408467,118.23,118.19,8.4661]
[1744221185023,0.05683722,118.2,118.18,0.05409313]
[1744221185227,3.722e-05,118.2,118.18,0.05409313]
[1744221185519,39.18408467,118.25,118.16,62.0]
[1744221185714,39.18408467,118.27,118.16,62.0]
[1744221185913,4.523,118.29,118.21,39.18408467]
[1744221186112,39.18408467,118.3,118.18,39.18408467]
[1744221186327,39.18408467,118.28,118.17,1.69247694]
[1744221186620,0.05939519,118.25,118.23,0.0645119]
[1744221187423,0.05939519,118.25,118.24,8.4631]
[1744221188121,13.1663,118.32,118.23,0.0645119]
[1744221188327,39.18408467,118.26,118.23,0.0645119]
[1744221188618,8.9479,118.32,118.24,39.18408467]
[1744221189014,8.9479,118.32,118.22,39.18408467]
[1744221189323,4.2287,118.37,118.27,0.05730587]
[1744221189522,1.0,118.4,118.32,39.18408467]
[1744221189727,1.0,118.4,118.34,39.18408467]
[1744221189917,40.18408467,118.4,118.3,39.18408467]
[1744221190118,40.18408467,118.4,118.28,1.69090294]
[1744221190119,39.18408467,118.36,118.28,1.69090294]
[1744221190424,0.05872956,118.33,118.31,0.06451303]
[1744221190618,4.3731,118.39,118.31,0.06451303]
[1744221190820,1.0,118.4,118.3,39.18408467]
[1744221191020,40.18408467,118.4,118.33,8.4566]
[1744221191218,1.0,118.4,118.32,39.18408467]
[1744221191435,1.0,118.4,118.34,39.18408467]
[1744221191722,1.0,118.4,118.39,8.4524]
[1744221193327,1.0,118.4,118.37,8.4533]
[1744221193527,1.0,118.4,118.36,0.05635331]
[1744221193718,78.36816934,118.38,118.25,43.53478467]
[1744221194023,43.50408467,118.37,118.25,43.53478467]
[1744221194222,4.32,118.37,118.26,39.18408467]
[1744221194427,548.12,118.38,118.28,39.18408467]
[1744221194927,0.05923818,118.34,118.32,0.06419002]
[1744221195428,40.18408467,118.4,118.32,0.06419002]
[1744221195429,1.0,118.4,118.39,8.4524]
[1744221196230,1.0,118.4,118.32,1.6903313]
[1744221196426,1.0,118.4,118.33,39.18408467]
[1744221196628,1.0,118.4,118.38,0.05566374]
[1744221196831,1.0,118.4,118.34,62.0]
[1744221197027,1.06373033,118.4,118.38,0.0641032]
[1744221197525,1.06373033,118.4,118.32,1.6903313]
[1744221197526,40.247815,118.4,118.32,1.6903313]
[1744221197727,39.18408467,118.38,118.32,1.6903313]
[1744221197929,39.18408467,118.36,118.32,1.6903313]
[1744221198331,1.0,118.4,118.32,1.6903313]
[1744221198531,40.18408467,118.4,118.32,1.6903313]
[1744221198832,0.05475528,118.37,118.35,0.05905526]
[1744221199040,39.18408467,118.36,118.27,8.5731]
[1744221199233,39.18408467,118.34,118.23,39.18408467]
[1744221200226,0.064607,118.3,118.27,0.05761938]
[1744221201421,7e-06,118.3,118.27,0.05761938]
[1744221201627,7e-06,118.3,118.27,47.70170405]
[1744221201823,7e-06,118.3,118.29,39.18408467]
[1744221202036,1.0,118.4,118.29,78.36816934]
[1744221202228,1.0,118.4,118.31,39.18408467]
[1744221202432,1.0,118.4,118.39,8.4524]
[1744221202735,39.18408467,118.47,118.33,39.18408467]
[1744221202931,39.18408467,118.47,118.35,39.18408467]
[1744221203136,47.78298467,118.49,118.37,39.18408467]
[1744221203328,47.78298467,118.49,118.39,0.05799232]
[1744221203530,47.78298467,118.49,118.38,4.2466]
[1744221203730,39.18408467,118.47,118.38,4.2466]
[1744221204040,39.18408467,118.39,118.34,1.69004563]
[1744221204337,39.18408467,118.37,118.34,1.69004563]
[1744221204532,39.18408467,118.35,118.23,43.34888467]
[1744221204738,39.18408467,118.33,118.24,4.2466]
[1744221205041,39.18408467,118.33,118.28,0.06124074]
[1744221205340,0.05633758,118.3,118.28,0.06124074]
[1744221205526,0.05633758,118.3,118.29,8.4595]
[1744221205930,0.05633758,118.3,118.28,0.06124074]
[1744221206337,39.18408467,118.29,118.28,0.06124074]
[1744221206838,47.64408467,118.29,118.16,4.1658]
[1744221207033,39.18408467,118.24,118.16,4.1658]
[1744221207227,39.18408467,118.24,118.13,43.47418467]
[1744221207627,39.18408467,118.26,118.13,43.47418467]
[1744221207828,39.18408467,118.25,118.13,43.47418467]
[1744221208028,0.05909593,118.2,118.17,0.05761858]
[1744221208234,39.18408467,118.27,118.22,8.464]
[1744221208533,4.2572,118.28,118.17,101.18408467]
[1744221208839,39.18408467,118.31,118.19,39.18408467]
[1744221209030,39.18408467,118.31,118.2,4.2901]
[1744221209340,0.060265,118.27,118.24,0.06110405]
[1744221209633,39.18408467,118.32,118.21,4.2775]
[1744221209833,39.18408467,118.32,118.21,43.46158467]
[1744221210027,0.05869683,118.27,118.24,0.05942389]
[1744221210229,0.05869683,118.27,118.25,8.462]
[1744221210426,0.05869683,118.27,118.2,4.2901]
[1744221210625,0.05869683,118.27,118.25,0.06410663]
[1744221210832,0.05869683,118.27,118.2,4.2901]
[1744221211031,0.05869683,118.27,118.25,0.05733857]
[1744221211232,0.05869683,118.27,118.26,8.4616]
[1744221211432,0.05869683,118.27,118.17,101.18408467]
[1744221211637,0.05869683,118.27,118.25,0.0618476]
[1744221211837,43.44128467,118.33,118.21,39.18408467]
[1744221212040,0.05462591,118.27,118.25,0.05622744]
[1744221212336,39.18408467,118.31,118.18,4.5486]
[1744221212531,0.05644374,118.27,118.25,0.06277592]
[1744221212838,4.3015,118.36,118.25,39.24686059]
[1744221213138,39.18408467,118.3,118.18,1.69233372]
[1744221213341,39.18408467,118.32,118.2,39.18408467]
[1744221213533,39.18408467,118.32,118.22,39.18408467]
[1744221213731,39.18408467,118.34,118.22,39.18408467]
[1744221213934,4.1718,118.35,118.26,39.18408467]
[1744221214132,0.06478752,118.29,118.27,0.06265508]
[1744221214328,547.96,118.4,118.28,39.18408467]
[1744221214529,587.14408467,118.4,118.29,5.97575999]
[1744221214733,39.18408467,118.38,118.29,5.97575999]
[1744221214935,547.96,118.4,118.32,39.18408467]
[1744221215133,8.7173,118.43,118.32,39.18408467]
[1744221215331,39.18408467,118.42,118.29,5.97575999]
[1744221215535,0.05623523,118.39,118.36,0.0554296]
[1744221216041,39.2403199,118.39,118.29,5.97575999]
[1744221216240,43.50218467,118.42,118.31,39.18408467]
[1744221216834,43.50218467,118.42,118.38,8.4526]
[1744221217045,0.06354387,118.38,118.35,0.05388234]
[1744221217338,4.3181,118.42,118.33,39.18408467]
[1744221217339,4.3181,118.42,118.38,8.4526]
[1744221217731,0.0605561,118.41,118.32,4.2757]
[1744221218038,43.50218467,118.42,118.32,4.2757]
[1744221218241,39.18408467,118.38,118.29,5.97575999]
[1744221218440,39.18408467,118.38,118.32,8.457]
[1744221218641,39.18408467,118.36,118.29,1.69075999]
[1744221218843,8.6453,118.35,118.29,1.69075999]
[1744221219042,39.18408467,118.33,118.31,0.05371157]
[1744221219245,0.06438824,118.34,118.31,0.05371157]
[1744221219635,39.18408467,118.33,118.22,48.01168467]
[1744221219835,0.06438824,118.34,118.22,49.70344579]
[1744221220045,587.10408467,118.39,118.28,39.18408467]
[1744221220344,587.10408467,118.39,118.26,39.18408467]
[1744221220534,547.92,118.39,118.26,39.18408467]
[1744221220832,587.10408467,118.39,118.31,0.05964069]
[1744221221034,0.05890123,118.34,118.33,8.4566]
[1744221221345,547.92,118.39,118.32,0.0637456]
[1744221221549,0.05937057,118.35,118.32,0.0637456]
[1744221222046,39.18408467,118.5,118.32,0.0637456]
[1744221222047,587.06408467,118.46,118.41,8.4504]
[1744221222242,587.06408467,118.46,118.34,39.18408467]
[1744221222448,587.06408467,118.46,118.33,5.83648845]
[1744221222639,39.18408467,118.48,118.37,39.18408467]